bitfinex/quotes_BTCUSD_20250508
["timestamp","ask_amount","ask_price","bid_price","bid_amount"]
[1746693771546,0.20663601,99683.0,99682.0,0.01866881]
[1746693771900,0.006,99683.0,99682.0,0.01866881]
[1746693772301,0.006,99683.0,99682.0,10.21853283]
[1746693772686,0.01003149,99686.0,99683.0,0.0100318]
[1746693773307,0.01003149,99686.0,99684.0,0.01866881]
[1746693773515,0.21065923,99688.0,99684.0,5.06866881]
[1746693773781,0.01003129,99688.0,99685.0,5.06866881]
[1746693773897,0.01003129,99688.0,99686.0,5.05]
[1746693774321,0.20062796,99687.0,99686.0,5.05]
[1746693774720,0.21065935,99687.0,99683.0,9.9764578]
[1746693774973,0.21065935,99687.0,99684.0,5.05]
[1746693775121,0.21065935,99687.0,99684.0,5.06866581]
[1746693775322,0.01003129,99688.0,99685.0,5.05]
[1746693775567,0.01003129,99688.0,99686.0,0.01866581]
[1746693776081,0.01003129,99688.0,99684.0,0.0100317]
[1746693776082,0.01403129,99688.0,99687.0,0.01866581]
[1746693776281,0.01003129,99688.0,99687.0,0.01866581]
[1746693776648,0.01503129,99688.0,99687.0,0.01866581]
[1746693776852,0.01003129,99688.0,99687.0,0.01866581]
[1746693777280,0.01403129,99688.0,99687.0,0.01866581]
[1746693777478,0.01003129,99688.0,99687.0,0.01866581]
[1746693777680,0.01003139,99687.0,99680.0,0.13664119]
[1746693777889,0.01003139,99687.0,99683.0,0.0100318]
[1746693778083,0.01003139,99687.0,99684.0,5.05]
[1746693778455,0.20062997,99686.0,99684.0,5.05]
[1746693779263,0.21066146,99686.0,99683.0,9.966426]
[1746693779458,0.21066146,99686.0,99684.0,0.01073726]
[1746693779665,0.21066146,99686.0,99684.0,5.06073726]
[1746693779909,0.21466146,99686.0,99685.0,5.05]
[1746693780111,0.21066146,99686.0,99685.0,5.06073913]
[1746693780455,0.21466146,99686.0,99685.0,5.06073913]
[1746693780772,0.21066146,99686.0,99685.0,5.06073913]
[1746693781810,0.21066146,99686.0,99685.0,0.01073913]
[1746693782061,0.21066146,99686.0,99685.0,5.06073913]
[1746693782246,0.004,99686.0,99685.0,5.05]
[1746693782401,0.004,99686.0,99685.0,0.35073913]
[1746693782609,0.004,99686.0,99685.0,0.36713913]
[1746693782811,0.004,99686.0,99685.0,5.41713913]
[1746693786033,0.004,99686.0,99685.0,5.80073913]
[1746693786445,0.004,99686.0,99685.0,5.81583913]
[1746693788955,0.004,99686.0,99685.0,5.80073913]
[1746693789771,0.004,99686.0,99685.0,5.8193931]
[1746693791475,0.004,99686.0,99685.0,5.8352931]
[1746693792409,0.01003099,99691.0,99687.0,0.01003139]
[1746693792633,0.01003099,99691.0,99689.0,0.34]
[1746693792788,0.01003099,99691.0,99690.0,5.39]
[1746693793204,0.01003099,99691.0,99690.0,5.41938663]
[1746693793609,0.21064599,99694.0,99690.0,5.41938663]
[1746693793610,0.21064599,99694.0,99691.0,0.34]
[1746693793820,0.21064599,99694.0,99692.0,5.05]
[1746693793984,0.21064599,99694.0,99692.0,5.06073639]
[1746693794186,0.21064599,99694.0,99692.0,0.01073639]
[1746693794497,0.21064599,99694.0,99693.0,0.01865397]
[1746693794836,0.21064599,99694.0,99693.0,0.01073826]
[1746693795198,0.01003079,99693.0,99690.0,0.01003109]
[1746693795567,0.01003079,99693.0,99691.0,5.05]
[1746693796486,0.005,99694.0,99691.0,5.05]
[1746693796686,0.21064308,99695.0,99691.0,5.06003099]
[1746693796906,0.21064308,99695.0,99692.0,5.05]
[1746693797174,0.005,99693.0,99692.0,5.05]
[1746693798893,0.21064308,99695.0,99692.0,5.05]
[1746693799099,0.21564308,99695.0,99692.0,5.05]
[1746693799439,0.21064308,99695.0,99692.0,5.05]
[1746693799876,0.005,99693.0,99692.0,5.05]
[1746693799994,0.21064308,99695.0,99692.0,5.05]
[1746693800396,0.21564308,99695.0,99691.0,0.01003099]
[1746693800616,0.01503059,99695.0,99692.0,5.05]
[1746693802332,0.005,99695.0,99692.0,5.06003089]
[1746693802530,0.005,99695.0,99694.0,0.54061387]
[1746693802735,0.005,99695.0,99694.0,5.59061387]
[1746693803538,0.01,99695.0,99694.0,5.59061387]
[1746693803708,0.005,99695.0,99694.0,5.59065916]
[1746693803916,0.011,99695.0,99694.0,5.59165916]
[1746693804325,0.011,99695.0,99694.0,5.61030853]
[1746693805367,0.011,99695.0,99694.0,0.69147545]
[1746693805570,0.011,99695.0,99694.0,10.45908345]
[1746693805692,0.011,99695.0,99694.0,9.58241545]
[1746693805894,0.011,99695.0,99694.0,8.65653145]
[1746693806307,0.005,99695.0,99694.0,8.65553145]
[1746693806510,0.006,99695.0,99694.0,8.65553145]
[1746693806988,0.005,99695.0,99694.0,8.63688208]
[1746693807165,0.006,99695.0,99694.0,8.63688208]
[1746693809411,0.006,99695.0,99694.0,8.52101516]
[1746693809615,0.006,99695.0,99694.0,8.06491483]
[1746693810295,0.006,99695.0,99694.0,8.08353335]
[1746693812248,0.006,99695.0,99694.0,3.65650148]
[1746693812470,0.006,99695.0,99694.0,3.85711535]
[1746693813092,0.006,99695.0,99694.0,0.96991535]
[1746693813540,0.006,99695.0,99694.0,6.01991535]
[1746693813726,0.006,99695.0,99694.0,9.72801335]
[1746693813900,0.006,99695.0,99694.0,9.56539535]
[1746693816199,0.006,99695.0,99694.0,9.59769535]
[1746693816913,0.006,99695.0,99694.0,9.58169535]
[1746693817600,0.006,99695.0,99694.0,9.56539535]
[1746693817779,0.006,99695.0,99694.0,8.08939535]
[1746693821891,0.006,99695.0,99694.0,7.99868935]
[1746693822122,0.006,99695.0,99694.0,7.86318635]
[1746693823719,0.006,99695.0,99694.0,7.26257248]
[1746693823933,0.006,99695.0,99694.0,0.02930148]
[1746693823934,0.0211,99695.0,99694.0,0.02930148]
[1746693824156,0.0371,99695.0,99694.0,0.02930148]
[1746693824372,0.0371,99695.0,99694.0,6.20841448]
[1746693824592,0.0371,99695.0,99694.0,3.86621448]
[1746693825121,0.0371,99695.0,99694.0,3.74081448]
[1746693825322,0.0371,99695.0,99694.0,1.29252748]
[1746693827003,0.0371,99695.0,99694.0,1.27390896]
[1746693827205,0.0371,99695.0,99694.0,1.292537]
[1746693827884,0.23771186,99695.0,99694.0,1.292537]
[1746693831482,0.2630688,99695.0,99694.0,1.214011]
[1746693831692,0.23771186,99695.0,99694.0,1.214011]
[1746693832314,0.23771186,99695.0,99694.0,0.814011]
[1746693832748,0.23771186,99695.0,99694.0,0.267611]
[1746693833403,0.23771186,99695.0,99694.0,0.029311]
[1746693833853,0.33837878,99695.0,99694.0,0.01867333]
[1746693834530,0.33737878,99695.0,99694.0,4.529e-05]
[1746693834731,0.42434713,99695.0,99694.0,4.529e-05]
[1746693835351,0.42534713,99695.0,99694.0,4.529e-05]
[1746693836037,0.21604608,99678.0,99677.0,0.02041485]
[1746693836403,0.21604608,99678.0,99677.0,0.01061893]
[1746693836610,0.21604608,99678.0,99677.0,0.35061893]
[1746693836814,0.21604608,99678.0,99677.0,0.75061893]
[1746693837044,0.21604608,99678.0,99677.0,6.14441693]
[1746693837365,0.21704608,99678.0,99677.0,5.74523893]
[1746693837483,0.21704608,99678.0,99677.0,5.70463893]
[1746693837685,0.21704608,99678.0,99677.0,5.69193893]
[1746693838307,0.21704608,99678.0,99677.0,5.64274593]
[1746693838510,0.21704608,99678.0,99677.0,5.17254593]
[1746693838713,0.21704608,99678.0,99677.0,5.14614593]
[1746693838959,0.21704608,99678.0,99677.0,4.76414593]
[1746693839314,0.21704608,99678.0,99677.0,4.72298493]
[1746693839524,0.21704608,99678.0,99677.0,4.74131979]
[1746693840310,0.21704608,99678.0,99677.0,4.46774979]
[1746693841328,0.21704608,99678.0,99677.0,4.42257279]
[1746693842440,0.21704608,99678.0,99677.0,4.37739479]
[1746693842718,0.20164608,99678.0,99677.0,4.37739479]
[1746693842908,0.001,99678.0,99677.0,4.37739479]
[1746693844035,0.001,99678.0,99677.0,3.97739479]
[1746693847265,0.001,99678.0,99677.0,3.25018379]
[1746693847423,0.0167,99678.0,99677.0,1.65458379]
[1746693848744,0.0167,99678.0,99677.0,1.77203879]
[1746693849280,0.0167,99678.0,99677.0,1.75296279]
[1746693849515,0.0167,99678.0,99677.0,1.70778379]
[1746693850303,0.0167,99678.0,99677.0,0.36895379]
[1746693850912,0.0167,99678.0,99677.0,3.12027079]
[1746693851109,0.0167,99678.0,99677.0,2.58242779]
[1746693851313,0.032,99678.0,99677.0,0.01061893]
[1746693851716,0.032,99678.0,99677.0,4.531e-05]
[1746693852542,0.033,99678.0,99677.0,4.531e-05]
[1746693853117,0.032,99678.0,99677.0,4.531e-05]
[1746693853435,0.036,99678.0,99677.0,4.531e-05]
[1746693854874,0.0207,99678.0,99677.0,4.531e-05]
[1746693860226,0.005,99678.0,99677.0,4.531e-05]
[1746693860437,0.005,99678.0,99677.0,5.59965499]
[1746693861069,0.005,99678.0,99677.0,5.3990069]
[1746693861874,0.005,99678.0,99677.0,5.43085499]
[1746693862246,0.005,99678.0,99677.0,5.25055499]
[1746693863019,0.005,99678.0,99677.0,5.0499069]
[1746693863640,0.005,99678.0,99677.0,5.65055499]
[1746693865039,0.005,99678.0,99677.0,5.44591401]
[1746693865239,0.0203,99678.0,99677.0,1.12331401]
[1746693865638,0.0203,99678.0,99677.0,0.72331401]
[1746693866038,0.0203,99678.0,99677.0,0.74195659]
[1746693866760,0.005,99678.0,99677.0,0.74195659]
[1746693869677,0.005,99678.0,99677.0,1.14195659]
[1746693870990,0.005,99678.0,99677.0,0.76365659]
[1746693871216,0.005,99678.0,99677.0,5.81365659]
[1746693873263,0.005,99678.0,99677.0,5.41365659]
[1746693876297,0.0202,99678.0,99677.0,5.41365659]
[1746693877478,0.005,99678.0,99677.0,5.41365659]
[1746693879689,0.0201,99678.0,99677.0,5.41365659]
[1746693881208,0.005,99678.0,99677.0,10.33191268]
[1746693881411,0.005,99678.0,99677.0,8.21465768]
[1746693881611,0.005,99678.0,99677.0,8.10722968]
[1746693882764,0.005,99678.0,99677.0,7.32426459]
[1746693882904,0.005,99678.0,99677.0,6.59645059]
[1746693883315,0.005,99678.0,99677.0,6.43179459]
[1746693884748,0.0205,99678.0,99677.0,1.51122759]
[1746693887727,0.0205,99678.0,99677.0,0.36365659]
[1746693887728,0.005,99678.0,99677.0,0.36365659]
[1746693888272,0.005,99678.0,99677.0,7.93268559]
[1746693888577,0.005,99678.0,99677.0,8.33268559]
[1746693890160,0.005,99678.0,99677.0,8.13590259]
[1746693890707,0.005,99678.0,99677.0,7.9234715]
[1746693890908,0.005,99678.0,99677.0,7.77977017]
[1746693894098,0.20564608,99678.0,99677.0,7.66631917]
[1746693894272,0.22204608,99678.0,99677.0,7.19403117]
[1746693894484,0.22204608,99678.0,99677.0,2.52595917]
[1746693895816,0.22204608,99678.0,99677.0,2.50731659]
[1746693900199,0.20564608,99678.0,99677.0,0.45916159]
[1746693900775,0.005,99678.0,99677.0,0.45916159]
[1746693901601,0.20564608,99678.0,99677.0,0.47783969]
[1746693902619,0.20564608,99678.0,99677.0,0.45916159]
[1746693902823,0.005,99678.0,99677.0,0.85916159]
[1746693904942,0.005,99678.0,99677.0,0.40896159]
[1746693905146,0.005,99678.0,99677.0,5.45896159]
[1746693906184,0.005,99678.0,99677.0,5.65960968]
[1746693906408,0.005,99678.0,99677.0,5.25960968]
[1746693906611,0.005,99678.0,99677.0,5.05896159]
[1746693909900,0.005,99678.0,99677.0,5.39842382]
[1746693911569,0.005,99678.0,99677.0,1.71932382]
[1746693911788,0.0375,99678.0,99677.0,0.60332382]
[1746693912223,0.0375,99678.0,99677.0,0.34842382]
[1746693920032,0.0375,99678.0,99677.0,0.54907191]
[1746693920245,0.0209,99678.0,99677.0,0.54907191]
[1746693921978,0.0209,99678.0,99677.0,0.59907191]
[1746693931529,0.0209,99678.0,99677.0,0.60683873]
[1746693935680,0.0209,99678.0,99677.0,0.40619064]
[1746693935885,0.0209,99678.0,99677.0,0.06619064]
[1746693935886,1.04215385,99678.0,99677.0,0.06619064]
[1746693936419,1.04215385,99678.0,99677.0,0.05776682]
[1746693936660,1.04920383,99678.0,99677.0,0.05776682]
[1746693936866,1.04820383,99678.0,99677.0,0.05776682]
[1746693937067,1.04920383,99678.0,99677.0,0.05776682]
[1746693937270,1.14987075,99678.0,99677.0,0.05776682]
[1746693938220,1.14987075,99678.0,99677.0,0.05760194]
[1746693938961,1.04920383,99678.0,99677.0,0.05760194]
[1746693940802,1.04920383,99678.0,99677.0,0.45760194]
[1746693943949,1.04920383,99678.0,99677.0,0.05760194]
[1746693944541,1.04920383,99678.0,99677.0,0.45760194]
[1746693947542,1.04920383,99678.0,99677.0,0.05760194]
[1746693947741,1.08369915,99678.0,99677.0,0.05760194]
[1746693948012,1.08369915,99678.0,99677.0,0.45760194]
[1746693948191,1.03466298,99678.0,99677.0,0.45760194]
[1746693949636,1.01886298,99678.0,99677.0,0.45760194]
[1746693950523,1.011813,99678.0,99677.0,0.45760194]
[1746693950752,0.89524608,99678.0,99677.0,0.47286129]
[1746693950997,0.6946,99678.0,99677.0,0.47286129]
[1746693951242,0.6946,99678.0,99677.0,0.28900938]
[1746693951471,0.6946,99678.0,99677.0,0.30540938]
[1746693951699,0.6946,99678.0,99677.0,0.50476129]
[1746693951916,0.6946,99678.0,99677.0,0.48836129]
[1746693952374,0.005,99678.0,99677.0,0.82836129]
[1746693952629,0.005,99678.0,99677.0,0.84446129]
[1746693952867,0.004,99678.0,99677.0,0.84446129]
[1746693953085,0.007,99678.0,99677.0,0.86307459]
[1746693953538,0.004,99678.0,99677.0,5.58068259]
[1746693953742,0.005,99678.0,99677.0,5.58068259]
[1746693954596,0.005,99678.0,99677.0,0.86307459]
[1746693954820,0.005,99678.0,99677.0,10.63068259]
[1746693955032,0.005,99678.0,99677.0,10.56739859]
[1746693955270,0.005,99678.0,99677.0,10.26620559]
[1746693956353,0.005,99678.0,99677.0,10.25014259]
[1746693956598,0.005,99678.0,99677.0,9.40982759]
[1746693957991,0.005,99678.0,99677.0,9.42642759]
[1746693959141,0.005,99678.0,99677.0,9.40982759]
[1746693961902,0.005,99678.0,99677.0,9.61047568]
[1746693964529,0.005,99678.0,99677.0,9.06131068]
[1746693965546,0.20062862,99687.0,99677.0,9.06131068]
[1746693965547,0.20059991,99701.0,99693.0,0.34]
[1746693965759,0.06003009,99700.0,99693.0,0.34]
[1746693966182,0.06003009,99700.0,99694.0,5.79]
[1746693966392,0.05,99700.0,99694.0,7.06726817]
[1746693966602,0.05,99700.0,99694.0,10.75873517]
[1746693967448,0.05,99700.0,99694.0,6.04112717]
[1746693967654,0.05,99700.0,99694.0,10.75873517]
[1746693968378,0.006,99695.0,99694.0,10.75873517]
[1746693968617,0.006,99695.0,99694.0,10.85940209]
[1746693968966,0.019,99695.0,99694.0,10.86040209]
[1746693969229,0.019,99695.0,99694.0,10.46040209]
[1746693970263,0.019,99695.0,99694.0,10.86040209]
[1746693970912,0.019,99695.0,99694.0,10.88544298]
[1746693971567,0.019,99695.0,99694.0,10.86040209]
[1746693972260,0.0155,99723.0,99721.0,0.20055824]
[1746693972490,0.0155,99723.0,99720.0,0.01002807]
[1746693972491,0.0155,99731.0,99728.0,0.01002727]
[1746693972704,0.21056077,99734.0,99728.0,0.01002727]
[1746693972705,0.01002677,99733.0,99729.0,5.26057024]
[1746693972950,0.01002677,99733.0,99728.0,0.01002727]
[1746693972951,0.20053744,99732.0,99730.0,0.4]
[1746693973121,0.21563744,99732.0,99730.0,0.4186133]
[1746693973363,0.0151,99731.0,99730.0,0.4186133]
[1746693973585,0.0151,99731.0,99730.0,0.4]
[1746693974178,0.00045407,99732.0,99730.0,5.45]
[1746693974374,0.00045407,99732.0,99731.0,5.05]
[1746693974578,0.00045407,99732.0,99731.0,5.59053945]
[1746693974799,0.00045407,99732.0,99731.0,6.60503845]
[1746693975011,0.00045407,99732.0,99731.0,6.62357035]
[1746693975332,0.00245407,99732.0,99731.0,6.62357035]
[1746693975775,0.00045407,99732.0,99731.0,6.62357035]
[1746693975979,0.00745407,99732.0,99731.0,6.62357035]
[1746693976219,0.00145407,99732.0,99731.0,6.64861124]
[1746693976425,0.00145407,99732.0,99731.0,6.60503845]
[1746693976629,0.00745407,99732.0,99731.0,7.00603845]
[1746693976821,0.00145407,99732.0,99731.0,7.00503845]
[1746693977271,0.00745407,99732.0,99731.0,7.00503845]
[1746693977406,0.00645407,99732.0,99731.0,7.00503845]
[1746693978436,0.00645407,99732.0,99731.0,6.08453845]
[1746693978664,0.00645407,99732.0,99731.0,6.01903845]
[1746693979171,0.00645407,99732.0,99731.0,4.93483845]
[1746693983072,0.00645407,99732.0,99731.0,3.554099]
[1746693983246,0.02185407,99732.0,99731.0,3.085499]
[1746693984087,0.00645407,99732.0,99731.0,3.28603845]
[1746693984657,0.00645407,99732.0,99731.0,0.54053945]
[1746693984994,0.00645407,99732.0,99731.0,8.13937145]
[1746693985362,0.00645407,99732.0,99731.0,8.15788049]
[1746693985766,0.00645407,99732.0,99731.0,8.13937145]
[1746693986156,0.00645407,99732.0,99731.0,5.20131945]
[1746693986361,0.00645407,99732.0,99731.0,4.95816145]
[1746693986565,0.00645407,99732.0,99731.0,4.90645045]
[1746693987262,0.00645407,99732.0,99731.0,5.30645045]
[1746693989428,0.00645407,99732.0,99731.0,5.32496857]
[1746693993227,0.00645407,99732.0,99731.0,4.98496857]
[1746693993633,0.20699151,99732.0,99731.0,4.78442912]
[1746693993836,0.20699151,99732.0,99731.0,3.94859112]
[1746693993837,0.02285407,99732.0,99731.0,3.94859112]
[1746693994454,0.00645407,99732.0,99731.0,3.94859112]
[1746693994665,0.02155407,99732.0,99731.0,3.94859112]
[1746693994875,0.00645407,99732.0,99731.0,0.41851812]
[1746693995085,0.00645407,99732.0,99731.0,9.96382157]
[1746693995299,0.00645407,99732.0,99731.0,0.61905757]
[1746693995729,0.00645407,99732.0,99731.0,9.95980757]
[1746693995946,0.00645407,99732.0,99731.0,9.96181457]
[1746694000512,0.02245407,99732.0,99731.0,5.56816112]
[1746694000713,0.02245407,99732.0,99731.0,5.14972312]
[1746694001463,0.02245407,99732.0,99731.0,5.48972312]
[1746694002434,0.22299151,99732.0,99731.0,5.56912312]
[1746694002633,0.22299151,99732.0,99731.0,5.54403712]
[1746694002814,0.02245407,99732.0,99731.0,5.54403712]
[1746694003412,0.02245407,99732.0,99731.0,5.50289512]
[1746694003619,0.02245407,99732.0,99731.0,5.22795012]
[1746694003904,0.02245407,99732.0,99731.0,5.13875012]
[1746694004128,0.22299151,99732.0,99731.0,5.13875012]
[1746694004326,0.02245407,99732.0,99731.0,4.62729512]
[1746694004534,0.02245407,99732.0,99731.0,4.58039512]
[1746694004930,0.02245407,99732.0,99731.0,4.47569512]
[1746694005340,0.02245407,99732.0,99731.0,4.33559512]
[1746694005544,0.02245407,99732.0,99731.0,4.27914012]
[1746694005771,0.02245407,99732.0,99731.0,4.23900212]
[1746694006659,0.02245407,99732.0,99731.0,4.48030212]
[1746694006864,0.02245407,99732.0,99731.0,4.47026712]
[1746694007543,0.02245407,99732.0,99731.0,4.42511212]
[1746694008674,0.02245407,99732.0,99731.0,4.16081212]
[1746694008675,0.22299151,99732.0,99731.0,4.16081212]
[1746694008889,0.02245407,99732.0,99731.0,2.78408112]
[1746694011080,0.02245407,99732.0,99731.0,1.07921812]
[1746694011327,0.02245407,99732.0,99731.0,2.85632912]
[1746694011526,0.02245407,99732.0,99731.0,2.82421812]
[1746694011734,0.22299151,99732.0,99731.0,2.78809412]
[1746694011982,0.23889151,99732.0,99731.0,2.76501512]
[1746694013029,0.02245407,99732.0,99731.0,2.76501512]
[1746694016247,0.02193322,99732.0,99731.0,2.76501512]
[1746694019605,0.22247066,99732.0,99731.0,2.74494612]
[1746694020079,0.00593322,99732.0,99731.0,2.94548557]
[1746694020295,0.00593322,99732.0,99731.0,7.99548557]
[1746694021024,0.01002586,99742.0,99739.0,0.34]
[1746694021331,0.01002586,99742.0,99740.0,8.336848]
[1746694021332,0.0162,99741.0,99740.0,8.336848]
[1746694021535,0.20051934,99741.0,99739.0,4.531e-05]
[1746694021857,0.20051934,99741.0,99740.0,0.03214165]
[1746694022222,0.23291934,99741.0,99740.0,0.03214165]
[1746694022633,0.24231724,99741.0,99740.0,0.03214165]
[1746694023585,0.24931724,99741.0,99740.0,0.03314165]
[1746694024004,0.25131724,99741.0,99740.0,0.03314165]
[1746694033211,0.23511724,99741.0,99740.0,0.03314165]
[1746694034265,0.22571934,99741.0,99740.0,0.03314165]
[1746694034480,0.0157,99738.0,99737.0,0.44697188]
[1746694034648,0.0157,99738.0,99737.0,0.44701723]
[1746694036116,0.0157,99738.0,99737.0,0.40004535]
[1746694036316,0.0247,99738.0,99737.0,0.40104535]
[1746694037566,0.0247,99738.0,99737.0,0.00104535]
[1746694038573,0.009,99738.0,99737.0,0.20157273]
[1746694039335,0.0253,99738.0,99737.0,0.00104535]
[1746694040640,0.0415,99738.0,99737.0,0.00104535]
[1746694041163,0.0253,99738.0,99737.0,0.00104535]
[1746694045188,0.22322167,99738.0,99737.0,0.00104535]
[1746694045766,0.25142345,99738.0,99737.0,0.00104535]
[1746694045966,0.24342345,99738.0,99737.0,4.535e-05]
[1746694046127,1.27202345,99738.0,99737.0,4.535e-05]
[1746694046338,1.27602345,99738.0,99737.0,4.535e-05]
[1746694046540,1.27602345,99738.0,99737.0,0.00504535]
[1746694046745,1.28306721,99738.0,99737.0,0.00504535]
[1746694047352,1.25486543,99738.0,99737.0,0.00504535]
[1746694047555,1.28303052,99738.0,99737.0,0.00504535]
[1746694047760,1.30672654,99738.0,99737.0,0.00504535]
[1746694048381,1.23941264,99738.0,99737.0,4.535e-05]
[1746694048584,1.23541264,99738.0,99737.0,4.535e-05]
[1746694048858,1.23541264,99738.0,99737.0,0.00304535]
[1746694049038,1.20656264,99738.0,99737.0,0.00304535]
[1746694049192,1.22110349,99738.0,99737.0,4.535e-05]
[1746694049379,1.30105168,99738.0,99737.0,0.00304535]
[1746694049585,1.32919258,99738.0,99737.0,0.00304535]
[1746694049809,1.30105168,99738.0,99737.0,0.00304535]
[1746694050027,1.33019239,99738.0,99737.0,4.535e-05]
[1746694050203,1.3163481,99738.0,99737.0,4.535e-05]
[1746694050804,1.30205168,99738.0,99737.0,4.535e-05]
[1746694051365,1.30205168,99738.0,99737.0,0.00304535]
[1746694051508,1.29460532,99738.0,99737.0,0.00304535]
[1746694051710,1.29360532,99738.0,99737.0,4.535e-05]
[1746694052159,1.29460532,99738.0,99737.0,0.00204535]
[1746694052458,1.29360532,99738.0,99737.0,0.00204535]
[1746694052705,1.1939384,99738.0,99737.0,4.535e-05]
[1746694053029,1.1939384,99738.0,99737.0,0.00304535]
[1746694053645,1.18689464,99738.0,99737.0,0.00304535]
[1746694054265,1.19441095,99738.0,99737.0,0.00304535]
[1746694054532,0.84689464,99738.0,99737.0,0.00304535]
[1746694055345,0.93817469,99738.0,99737.0,0.00304535]
[1746694058087,0.83750777,99738.0,99737.0,0.00304535]
[1746694058277,0.82296692,99738.0,99737.0,0.00304535]
[1746694058686,0.80756692,99738.0,99737.0,0.00304535]
[1746694061161,0.80756692,99738.0,99737.0,4.535e-05]
[1746694061338,0.80256692,99738.0,99737.0,4.535e-05]
[1746694061542,0.80156692,99738.0,99737.0,0.00604535]
[1746694061746,0.80156692,99738.0,99737.0,0.00704535]
[1746694062862,0.81093723,99738.0,99737.0,0.00704535]
[1746694064575,0.91160415,99738.0,99737.0,0.00704535]
[1746694067317,0.81093723,99738.0,99737.0,0.00704535]
[1746694068898,0.79963723,99738.0,99737.0,0.00704535]
[1746694069552,0.69897031,99738.0,99737.0,0.00704535]
[1746694070121,0.6896,99738.0,99737.0,0.00704535]
[1746694073176,0.69898175,99738.0,99737.0,0.00704535]
[1746694073588,0.00938175,99738.0,99737.0,0.00704535]
[1746694074180,0.20990618,99739.0,99737.0,0.00704535]
[1746694075158,0.00938175,99738.0,99737.0,0.00104535]
[1746694075875,0.00938175,99738.0,99737.0,0.00504535]
[1746694076078,0.00938175,99738.0,99737.0,0.00404535]
[1746694076444,0.00938175,99738.0,99737.0,0.00504535]
[1746694076582,0.00938175,99738.0,99737.0,0.00404535]
[1746694077085,0.00938175,99738.0,99737.0,0.00504535]
[1746694077263,0.00938175,99738.0,99737.0,4.535e-05]
[1746694077637,0.00938175,99738.0,99737.0,0.00604535]
[1746694078020,0.00938175,99738.0,99737.0,0.00104535]
[1746694078222,0.00938175,99738.0,99737.0,0.00604535]
[1746694079847,0.20052443,99739.0,99737.0,0.00604535]
[1746694080649,0.20052443,99739.0,99737.0,0.00104535]
[1746694080852,0.20052443,99739.0,99737.0,4.535e-05]
[1746694081052,0.20052443,99739.0,99737.0,0.00504535]
[1746694081255,0.20052443,99739.0,99737.0,0.00604535]
[1746694082099,0.018602,99788.0,99743.0,0.01002576]
[1746694082100,0.20050729,99747.0,99743.0,0.01002576]
[1746694082296,0.21053025,99749.0,99744.0,0.20051331]
[1746694082297,0.01002526,99748.0,99744.0,0.20051331]
[1746694082529,0.10066692,99747.0,99745.0,0.3563]
[1746694082860,0.20050929,99746.0,99745.0,0.37494153]
[1746694083166,0.20050929,99746.0,99745.0,0.3563]
[1746694083505,0.01002456,99755.0,99748.0,0.01002526]
[1746694083836,0.01002506,99750.0,99746.0,0.55053475]
[1746694084035,0.20049522,99753.0,99749.0,0.0166]
[1746694084036,0.01002486,99752.0,99749.0,0.0166]
[1746694084238,0.01002486,99752.0,99750.0,0.0164]
[1746694084440,0.01002486,99752.0,99750.0,0.03504178]
[1746694084650,0.00938575,99754.0,99753.0,0.20049522]
[1746694084911,0.00938575,99754.0,99753.0,0.63349522]
[1746694085034,0.004,99755.0,99753.0,0.619137]
[1746694085245,0.004,99755.0,99754.0,5.082]
[1746694086083,0.004,99755.0,99754.0,5.10064178]
[1746694086318,0.01002395,99761.0,99757.0,0.01002435]
[1746694086505,0.01002395,99761.0,99758.0,0.01002425]
[1746694087206,0.01002385,99762.0,99758.0,0.01002425]
[1746694087341,0.01021243,99763.0,99758.0,0.01002425]
[1746694087765,0.01021243,99763.0,99760.0,0.01002405]
[1746694087962,0.00018868,99763.0,99760.0,0.01002405]
[1746694088181,0.01021243,99763.0,99760.0,0.01002405]
[1746694088388,0.01021243,99763.0,99758.0,0.01002425]
[1746694088586,0.00018868,99763.0,99760.0,0.01002405]
[1746694088858,0.01002385,99762.0,99759.0,0.01002415]
[1746694089262,0.01002385,99762.0,99758.0,0.01002425]
[1746694089462,0.01002385,99762.0,99759.0,5.05]
[1746694089793,0.01002385,99762.0,99759.0,5.06002415]
[1746694089992,0.01002385,99762.0,99759.0,0.01002415]
[1746694090195,0.01702385,99762.0,99759.0,0.01102415]
[1746694090520,0.01702385,99762.0,99759.0,0.001]
[1746694091227,0.20047914,99761.0,99759.0,0.001]
[1746694091428,0.01693374,99762.0,99759.0,0.001]
[1746694092903,0.21741275,99762.0,99759.0,0.001]
[1746694094979,0.21741173,99762.0,99759.0,0.001]
[1746694095186,0.20048115,99760.0,99759.0,0.001]
[1746694095380,0.20048115,99760.0,99759.0,5.051]
[1746694096436,0.21041093,99762.0,99759.0,5.05]
[1746694096612,0.01002405,99760.0,99758.0,5.05]
[1746694096807,0.01702405,99760.0,99759.0,0.017]
[1746694097003,0.2175052,99760.0,99759.0,5.067]
[1746694097207,0.007,99760.0,99759.0,5.067]
[1746694097409,0.007,99760.0,99759.0,9.36241173]
[1746694097616,0.21048372,99771.0,99759.0,9.36241173]
[1746694097617,2.27524,99800.0,99781.0,0.01002194]
[1746694097811,2.27524,99800.0,99759.0,9.52566449]
[1746694097812,0.00105509,99840.0,99812.0,0.2003767]
[1746694098037,0.01001773,99823.0,99812.0,0.00200385]
[1746694098292,0.01001602,99840.0,99816.0,0.01]
[1746694098529,0.00138209,99857.0,99830.0,0.23586072]
[1746694098753,0.00138209,99857.0,99817.0,7.58739898]
[1746694098754,0.01001662,99834.0,99831.0,6.96563273]
[1746694098946,0.21035127,99833.0,99832.0,0.7131]
[1746694099151,0.20034958,99826.0,99820.0,0.23586072]
[1746694099379,0.21037379,99823.0,99821.0,3.818978]
[1746694099509,0.01001692,99831.0,99822.0,1.4322]
[1746694099738,0.01001692,99831.0,99800.0,0.02975764]
[1746694099739,0.20037269,99814.0,99813.0,0.7782]
[1746694099955,0.20037269,99814.0,99813.0,0.546]
[1746694100163,0.20037269,99814.0,99813.0,0.3512]
[1746694100424,0.20037269,99814.0,99812.0,4.535e-05]
[1746694101051,0.11596692,99813.0,99812.0,4.535e-05]
[1746694101253,0.13126692,99813.0,99812.0,4.535e-05]
[1746694101876,0.15513123,99813.0,99812.0,4.535e-05]
[1746694103116,0.15613123,99813.0,99812.0,4.535e-05]
[1746694104089,0.15613123,99813.0,99812.0,0.00304535]
[1746694104995,0.56285782,99813.0,99812.0,0.00304535]
[1746694106038,0.49613123,99813.0,99812.0,0.00304535]
[1746694106599,0.57647147,99813.0,99812.0,0.00304535]
[1746694107345,0.57547147,99813.0,99812.0,0.00304535]